bitfinex/quotes_ETHUSD_20250814
["timestamp","ask_amount","ask_price","bid_price","bid_amount"]
[1755147082182,0.1056,4747.2,4747.1,7.33196374]
[1755147082610,0.1056,4747.2,4747.1,7.33169576]
[1755147083488,0.1056,4747.2,4747.1,6.86039576]
[1755147083684,0.1056,4747.2,4747.1,6.40739576]
[1755147084413,0.1056,4747.2,4747.1,3.40739576]
[1755147085126,0.1056,4747.2,4747.1,4.33159576]
[1755147085682,0.1056,4747.2,4747.1,4.33148979]
[1755147087514,0.01978848,4747.2,4747.1,4.33148979]
[1755147092747,0.00536115,4747.2,4747.1,7.33148979]
[1755147094037,0.00536115,4747.2,4747.1,3.86018979]
[1755147095518,0.00536115,4747.2,4747.1,3.40728979]
[1755147096745,0.00536115,4747.2,4747.1,3.40628979]
[1755147097513,0.00536115,4747.2,4747.1,3.21]
[1755147097714,0.00536115,4747.2,4747.1,3.40629488]
[1755147098350,0.00536115,4747.2,4747.1,0.19629488]
[1755147098654,0.00536115,4747.2,4747.1,3.40629488]
[1755147100264,0.4334,4747.6,4747.1,3.40629488]
[1755147100461,0.002,4747.6,4747.2,0.19629488]
[1755147100763,0.9205,4747.5,4747.3,0.19645154]
[1755147100958,0.002,4747.6,4747.4,0.19645154]
[1755147101264,0.002,4747.6,4747.5,3.40545154]
[1755147101474,0.9225,4747.6,4747.5,3.40545154]
[1755147101678,1.0281,4747.6,4747.5,3.40545154]
[1755147101978,2.40459346,4747.6,4747.5,3.40545154]
[1755147102270,1.0281,4747.6,4747.5,3.40545154]
[1755147103445,0.002,4747.6,4747.5,3.40545154]
[1755147103652,0.1076,4747.6,4747.5,3.85835154]
[1755147103871,0.10615077,4747.6,4747.5,3.85835154]
[1755147104246,0.10615077,4747.6,4747.5,3.40545154]
[1755147106646,0.10615077,4747.6,4747.5,3.40584213]
[1755147108238,0.10615077,4747.6,4747.5,3.85874213]
[1755147108439,0.00055077,4747.6,4747.5,4.33004213]
[1755147108948,0.1056,4747.8,4747.5,4.33004213]
[1755147109145,0.002,4748.0,4747.6,1.12104213]
[1755147109352,0.1076,4748.0,4747.8,1.89043168]
[1755147109545,0.1076,4748.0,4747.9,3.85874213]
[1755147110044,0.002,4748.0,4747.9,7.33004213]
[1755147110351,0.002,4748.7,4747.9,4.33004213]
[1755147110684,0.002,4748.7,4748.2,1.8883443]
[1755147110857,0.002,4748.7,4748.3,3.40584213]
[1755147111057,0.002,4748.7,4748.4,0.64974213]
[1755147111257,0.002,4748.7,4748.5,3.40584213]
[1755147111448,0.002,4748.7,4748.6,0.19684213]
[1755147111850,0.9299536,4748.7,4748.6,0.19684213]
[1755147112860,0.9299536,4748.7,4748.6,3.40484213]
[1755147113255,0.5001536,4748.7,4748.6,3.40484213]
[1755147113583,0.9299536,4748.7,4748.6,3.40484213]
[1755147113746,0.0005536,4748.7,4748.6,3.40484213]
[1755147116152,0.0005536,4748.7,4748.6,0.19684213]
[1755147116368,0.0005536,4748.7,4748.6,3.40484213]
[1755147116868,0.0005536,4748.7,4748.6,8.45084213]
[1755147117873,0.0005536,4748.7,4748.6,9.35514213]
[1755147118073,0.0005536,4748.7,4748.6,12.35514213]
[1755147118575,0.0005536,4748.7,4748.6,11.45084213]
[1755147118780,0.0005536,4748.7,4748.6,12.35514213]
[1755147119275,0.0005536,4748.7,4748.6,11.88984213]
[1755147119887,0.002,4749.1,4748.7,3.0]
[1755147120174,0.1056,4749.0,4748.8,0.19684213]
[1755147120380,0.10316809,4749.0,4748.9,6.40484213]
[1755147120680,0.002,4749.1,4748.9,6.84384213]
[1755147120977,0.002,4749.1,4749.0,1.10114213]
[1755147121793,0.02,4749.4,4749.0,1.10114213]
[1755147121794,0.02,4749.4,4749.0,1.20674213]
[1755147121950,0.02,4749.4,4749.1,6.84384213]
[1755147122150,0.02,4749.4,4749.1,7.30914213]
[1755147123495,0.02,4749.4,4749.1,3.63584213]
[1755147123666,0.02,4749.4,4749.1,7.30814213]
[1755147124062,0.02,4749.4,4749.1,6.84284213]
[1755147124269,0.02,4749.4,4749.1,7.30814213]
[1755147124655,0.02,4749.4,4749.1,3.63584213]
[1755147124863,0.02,4749.4,4749.1,6.84284213]
[1755147125193,0.02,4749.4,4749.1,8.72082052]
[1755147126503,0.02,4749.4,4749.1,9.18612052]
[1755147126859,0.02,4749.4,4749.1,5.97912052]
[1755147127061,0.02,4749.4,4749.1,7.30814213]
[1755147127475,0.02,4749.4,4749.1,3.19684213]
[1755147127695,0.02,4749.4,4749.1,6.40384213]
[1755147127997,0.0059611,4749.4,4749.1,3.40384213]
[1755147128196,0.0059611,4749.4,4749.2,0.19684213]
[1755147128402,0.0059611,4749.4,4749.3,3.50944213]
[1755147129394,0.0059611,4749.4,4749.3,3.40384213]
[1755147129395,0.9353611,4749.4,4749.3,3.40384213]
[1755147130373,0.4996,4749.4,4749.3,3.40384213]
[1755147130791,0.002,4749.6,4749.3,3.40384213]
[1755147130976,0.002,4749.6,4749.4,0.19684213]
[1755147131679,0.002,4749.6,4749.4,3.19684213]
[1755147132019,0.002,4749.6,4749.4,3.40284213]
[1755147132283,0.002,4749.6,4749.4,3.840554]
[1755147133077,0.002,4749.6,4749.4,3.946154]
[1755147135002,0.002,4749.6,4749.4,6.507154]
[1755147135185,0.002,4749.6,4749.4,6.5073148]
[1755147135493,0.9314,4749.5,4749.4,6.5073148]
[1755147135706,0.9314,4749.5,4749.4,6.4017148]
[1755147135892,0.6555836,4749.5,4749.4,6.4017148]
[1755147137401,0.6555836,4749.5,4749.4,3.4017148]
[1755147137687,0.7611836,4749.5,4749.4,3.4017148]
[1755147138807,0.3313836,4749.5,4749.4,3.4017148]
[1755147139092,0.1076,4749.6,4749.4,3.4017148]
[1755147139287,0.1076,4749.6,4749.5,0.1957148]
[1755147140909,0.002,4750.0,4749.5,0.1957148]
[1755147141121,0.002,4750.0,4749.4,3.206]
[1755147141122,0.1056,4749.9,4749.6,3.4017148]
[1755147141789,0.49,4749.7,4749.6,3.4017148]
[1755147141981,0.9507,4749.7,4749.6,3.4017148]
[1755147143378,0.9507,4749.7,4749.6,8.4467148]
[1755147145180,0.49,4749.7,4749.6,8.4467148]
[1755147145382,0.9507,4749.7,4749.6,8.4467148]
[1755147147386,0.9507,4749.7,4749.6,8.251]
[1755147147592,0.9507,4749.7,4749.6,8.44759052]
[1755147148086,0.9507,4749.7,4749.6,5.24159052]
[1755147148283,0.9507,4749.7,4749.6,8.44759052]
[1755147148284,2.33021346,4749.7,4749.6,8.44759052]
[1755147155821,2.33021346,4749.7,4749.6,5.24159052]
[1755147155986,2.33021346,4749.7,4749.6,8.44659052]
[1755147156187,2.33021346,4749.7,4749.6,8.44656235]
[1755147159614,16.83021346,4749.7,4749.6,8.44656235]
[1755147161432,15.4507,4749.7,4749.6,8.44656235]
[1755147161645,14.502,4749.7,4749.6,8.44656235]
[1755147161848,0.002,4749.7,4749.6,8.88426235]
[1755147162209,0.002,4749.7,4749.6,9.36986235]
[1755147162711,0.002,4750.0,4749.6,9.47546235]
[1755147162909,0.002,4750.0,4749.7,4.11986235]
[1755147163158,0.002,4750.0,4749.9,3.1056]
[1755147163309,0.002,4750.0,4749.9,3.50716235]
[1755147163514,0.002,4750.0,4749.9,4.43046235]
[1755147164128,0.002,4750.0,4749.9,9.31708806]
[1755147164632,0.002,4750.0,4749.9,7.43046235]
[1755147168246,0.002,4750.0,4749.9,9.31570228]
[1755147171254,0.002,4750.0,4749.9,9.31545433]
[1755147172251,0.002,4750.0,4749.9,7.4302144]
[1755147172618,3.02,4753.4,4749.9,7.3246144]
[1755147172819,0.1056,4750.8,4750.2,0.1056]
[1755147173044,0.1056,4750.8,4750.4,3.0]
[1755147173352,0.1056,4750.8,4750.3,4.3712144]
[1755147173353,0.1056,4750.8,4750.5,3.8734144]
[1755147173545,0.1056,4750.8,4750.6,3.4003144]
[1755147174631,0.1056,4750.8,4750.6,3.8734144]
[1755147175533,0.1056,4750.8,4750.6,3.4003144]
[1755147180352,0.1056,4750.8,4750.6,3.40007882]
[1755147180655,0.1056,4750.8,4750.6,3.87317882]
[1755147181155,0.002,4751.7,4750.6,7.37097882]
[1755147181332,0.1056,4751.5,4750.6,9.36051385]
[1755147182568,0.9313,4751.5,4750.6,3.40007882]
[1755147182736,0.4592,4751.2,4750.8,3.0]
[1755147182938,0.4592,4751.2,4751.0,3.0]
[1755147183133,0.1056,4751.3,4751.1,6.39907882]
[1755147183338,0.1056,4751.3,4751.2,0.19607882]
[1755147184935,0.02,4751.4,4751.2,0.19607882]
[1755147185136,0.02,4751.4,4751.3,3.39907882]
[1755147185439,0.02,4751.4,4751.3,3.39903006]
[1755147185963,0.02,4751.4,4751.3,7.36993006]
[1755147186439,0.02,4751.4,4751.3,6.87213006]
[1755147186761,0.02,4751.4,4751.3,6.89683006]
[1755147187059,0.02,4751.4,4751.3,6.87213006]
[1755147187258,0.002,4751.7,4751.4,3.0]
[1755147187460,0.002,4751.7,4751.6,3.0]
[1755147187645,0.002,4751.7,4751.6,3.30163006]
[1755147188235,0.002,4751.7,4751.6,0.30163006]
[1755147188461,0.4741,4751.7,4751.6,3.39903006]
[1755147188631,0.9333,4751.7,4751.6,0.19603006]
[1755147188837,0.9333,4751.7,4751.6,3.39903006]
[1755147189437,0.9333,4751.7,4751.6,3.3989922]
[1755147189968,0.9333,4751.7,4751.6,8.4419922]
[1755147190334,0.9333,4751.7,4751.6,5.2389922]
[1755147190538,2.3092103,4751.7,4751.6,8.4409922]
[1755147190745,0.9333,4751.7,4751.6,8.4409922]
[1755147191461,0.9333,4751.7,4751.6,8.44117316]
[1755147197568,0.002,4751.7,4751.6,8.44117316]
[1755147197773,0.1056,4751.9,4751.6,8.91427316]
[1755147197953,0.1056,4751.9,4751.7,0.19617316]
[1755147198154,0.1056,4751.9,4751.8,3.39817316]
[1755147198753,1.0369,4751.9,4751.8,0.19617316]
[1755147198953,0.1056,4751.9,4751.8,3.39817316]
[1755147200948,1.0369,4751.9,4751.8,3.39817316]
[1755147201443,13.77173458,4751.9,4751.8,3.39817316]
[1755147202270,13.77173458,4751.9,4751.8,0.19617316]
[1755147202444,15.14890804,4751.9,4751.8,3.39717316]
[1755147203547,15.14890804,4751.9,4751.8,0.19617316]
[1755147203747,15.14890804,4751.9,4751.8,3.39717316]
[1755147204378,1.0369,4751.9,4751.8,3.39717316]
[1755147204676,1.0369,4751.9,4751.8,0.19617316]
[1755147204860,1.0369,4751.9,4751.8,3.39717316]
[1755147206770,1.0369,4751.9,4751.8,3.39746699]
[1755147207476,0.1056,4751.9,4751.8,3.39746699]
[1755147208252,1.0338,4751.9,4751.8,3.39746699]
[1755147208447,13.76863458,4751.9,4751.8,3.39746699]
[1755147208653,15.86976183,4751.9,4751.8,3.39746699]
[1755147209154,15.86976183,4751.9,4751.8,0.19646699]
[1755147209458,15.86976183,4751.9,4751.8,3.39746699]
[1755147211480,15.87176183,4751.9,4751.8,0.19646699]
[1755147211784,15.87176183,4751.9,4751.8,3.39746699]
[1755147212079,30.37176183,4751.9,4751.8,3.39746699]
[1755147213163,30.37176183,4751.9,4751.8,0.19646699]
[1755147213359,30.37176183,4751.9,4751.8,3.39746699]
[1755147220392,30.37176183,4751.9,4751.8,3.201]
[1755147220572,30.37176183,4751.9,4751.1,0.001]
[1755147220900,12.73483458,4751.2,4751.1,0.001]
[1755147221056,12.84043458,4751.2,4751.1,0.001]
[1755147221260,28.26863458,4751.2,4751.1,0.001]
[1755147221865,28.26863458,4751.2,4751.1,3.202]
[1755147223821,28.26863458,4751.2,4751.1,0.001]
[1755147223975,30.36976183,4751.2,4751.1,3.202]
[1755147225798,16.70672725,4751.2,4751.1,3.202]
[1755147225995,27.34043458,4751.2,4751.1,3.202]
[1755147229230,14.6056,4751.2,4751.1,3.202]
[1755147229393,14.6056,4751.2,4751.1,3.6552]
[1755147229598,14.6056,4751.2,4751.1,4.1062]
[1755147232306,0.1056,4751.2,4751.1,4.1062]
[1755147232617,0.1056,4751.2,4751.1,4.30263598]
[1755147232805,14.6056,4751.2,4751.1,4.30263598]
[1755147233008,14.6056,4751.2,4751.1,3.39843598]
[1755147233214,14.6056,4751.2,4751.1,4.34633598]
[1755147233520,14.6056,4751.2,4751.1,3.86233598]
[1755147234422,14.6056,4751.2,4751.1,3.39843598]
[1755147235495,14.6056,4751.2,4751.1,0.19743598]
[1755147235692,15.5343,4751.2,4751.1,3.39743598]
[1755147235894,3.13542725,4751.2,4751.1,0.19743598]
[1755147236106,3.13542725,4751.2,4751.1,3.39743598]
[1755147236422,17.63542725,4751.2,4751.1,3.39743598]
[1755147238109,17.63542725,4751.2,4750.3,5.044]
[1755147238318,12.84043458,4750.7,4750.3,5.044]
[1755147238596,0.1056,4750.4,4750.3,5.044]
[1755147239193,0.1056,4750.4,4750.3,8.244]
[1755147240428,17.52982725,4751.2,4750.3,8.50190582]
[1755147240429,14.5,4751.2,4750.3,8.50190582]
[1755147240633,0.002,4751.9,4750.4,3.94300582]
[1755147240832,0.002,4751.9,4750.6,3.0]
[1755147241030,0.002,4751.9,4750.7,4.14300582]
[1755147241233,12.73483458,4751.7,4750.8,0.6851]
[1755147241436,12.73483458,4751.7,4750.9,3.624]
[1755147241743,12.73483458,4751.7,4751.0,0.424]
[1755147241933,0.002,4751.9,4751.0,0.424]
[1755147242133,0.002,4751.9,4751.0,0.6851]
[1755147242309,0.002,4751.9,4751.1,0.2611]
[1755147242512,0.002,4751.9,4751.3,3.0]
[1755147242701,0.002,4751.9,4751.4,0.94300582]
[1755147242900,0.002,4751.9,4751.6,3.0]
[1755147243106,0.002,4751.9,4751.7,0.6851]
[1755147243317,0.002,4751.9,4751.8,3.8851]
[1755147248751,0.002,4751.9,4751.8,3.624]
[1755147249709,0.002,4751.9,4751.8,3.8851]
[1755147250136,0.002,4751.9,4751.8,4.08089834]
[1755147250336,0.002,4751.9,4751.8,7.08089834]
[1755147252115,0.002,4751.9,4751.8,6.39579834]
[1755147252316,0.002,4751.9,4751.8,6.39379834]
[1755147253346,0.002,4751.9,4751.8,7.07889834]
[1755147253545,0.002,4751.9,4751.8,4.13880416]
[1755147253846,0.002,4751.9,4751.8,6.81779834]
[1755147254341,0.002,4751.9,4751.8,6.39379834]
[1755147254547,0.002,4751.9,4751.8,7.07889834]
[1755147256668,0.002,4751.9,4751.8,6.81779834]
[1755147256875,0.002,4751.9,4751.8,6.81762087]
[1755147257071,0.002,4751.9,4751.8,6.39362087]
[1755147258944,0.002,4751.9,4751.8,6.81762087]
[1755147259671,0.002,4751.9,4751.8,6.39362087]
[1755147263274,0.002,4751.9,4751.8,3.19562087]
[1755147263571,0.002,4751.9,4751.8,6.39262087]
[1755147265075,0.9188,4751.9,4751.8,6.39262087]
[1755147265453,0.9188,4751.9,4751.8,3.19562087]
[1755147265657,0.9188,4751.9,4751.8,6.39262087]
[1755147265858,0.9188,4751.9,4751.8,3.19562087]
[1755147266056,0.9188,4751.9,4751.8,6.39262087]
[1755147266674,0.9188,4751.9,4751.8,11.43462087]
[1755147267046,0.9188,4751.9,4751.8,8.43462087]
[1755147267247,1.0244,4751.9,4751.8,8.43462087]
[1755147267447,1.0244,4751.9,4751.8,8.239]
[1755147269288,0.1076,4751.9,4751.8,8.239]
[1755147269448,1.0244,4751.9,4751.8,8.239]
[1755147275361,1.0244,4751.9,4751.8,5.042]
[1755147275562,1.0244,4751.9,4751.8,8.239]
[1755147281995,0.002,4751.9,4751.8,8.663]
[1755147282565,0.002,4751.9,4751.8,10.54475766]
[1755147282763,0.002,4751.9,4751.8,10.80585766]
[1755147283491,0.002,4751.9,4751.8,10.54475766]
[1755147283877,0.002,4751.9,4751.8,10.12075766]
[1755147284082,0.002,4751.9,4751.8,8.239]
[1755147285298,0.002,4751.9,4751.8,10.54475766]
[1755147286194,0.002,4751.9,4751.8,14.08034681]
[1755147286393,0.002,4751.9,4751.8,12.30418915]
[1755147286969,0.022,4752.4,4751.9,3.0]
[1755147287179,0.022,4752.4,4752.3,1.88534422]
[1755147287377,0.022,4752.4,4752.3,5.08134422]
[1755147288473,0.022,4752.4,4752.1,1.99094422]
[1755147288673,0.4882,4752.3,4752.2,6.196]
[1755147288891,0.9168,4752.3,4752.2,6.196]
[1755147289070,1.0224,4752.3,4752.2,6.196]
[1755147291298,0.1056,4752.3,4752.2,6.196]
[1755147291676,1.0229,4752.3,4752.2,6.196]
[1755147292477,1.0229,4752.3,4752.2,3.196]
[1755147295296,1.0229,4752.3,4751.8,5.042]
[1755147295297,1.190833,4752.3,4751.8,5.042]
[1755147295499,0.167933,4752.3,4751.9,3.196]
[1755147295708,0.9173,4752.2,4751.9,3.196]
[1755147295891,0.9173,4752.1,4751.9,3.196]
[1755147296086,0.9173,4752.0,4751.8,5.042]
[1755147296286,0.9173,4751.9,4751.8,5.042]
[1755147296500,1.0229,4751.9,4751.8,8.238]
[1755147297586,0.1056,4751.9,4751.8,8.238]
[1755147301731,1.0229,4751.9,4751.8,8.237]
[1755147306994,1.0229,4751.9,4751.8,5.042]
[1755147307340,1.0229,4751.9,4751.8,8.237]
[1755147307838,1.0229,4751.9,4751.8,5.042]
[1755147308155,2.39887346,4751.9,4751.8,8.237]
[1755147310143,1.48157346,4751.9,4751.8,8.237]
[1755147310443,0.1056,4751.9,4751.8,5.042]
[1755147310607,0.1056,4751.9,4751.8,8.237]
[1755147314423,0.5688,4751.9,4751.8,8.237]
[1755147314930,1.0229,4751.9,4751.8,8.237]
[1755147316218,1.0229,4751.9,4751.8,5.042]
[1755147316414,1.0229,4751.9,4751.8,8.237]
[1755147317523,15.28792367,4751.9,4751.3,0.001]
[1755147317848,12.84043458,4751.4,4751.3,0.001]
[1755147318047,28.25773458,4751.4,4751.3,3.196]
[1755147318354,28.25773458,4751.4,4751.3,0.001]
[1755147318522,31.25773458,4751.4,4751.3,3.196]
[1755147318852,33.35886183,4751.4,4751.3,3.39248769]
[1755147319256,3.0,4751.3,4751.1,0.001]
[1755147319462,0.9173,4751.2,4751.1,0.001]
[1755147319662,0.9173,4751.2,4750.4,5.042]
[1755147319663,15.73483458,4750.9,4750.4,5.042]
[1755147319833,16.65213458,4750.9,4750.4,5.042]
[1755147320032,32.92294804,4750.9,4750.4,5.042]
[1755147320672,32.92294804,4750.9,4750.8,3.196]
[1755147321947,3.0,4750.8,4750.4,5.042]
[1755147322142,0.9042,4750.7,4750.1,0.001]
[1755147322465,0.1056,4750.2,4750.1,0.001]
[1755147322769,15.5098,4750.2,4750.1,0.001]
[1755147323137,15.5098,4750.2,4750.1,3.196]
[1755147326772,28.24463458,4750.2,4750.1,3.196]
[1755147326980,30.34576183,4750.2,4750.1,3.196]
[1755147328699,16.70672725,4750.2,4750.1,3.196]
[1755147329085,17.61092725,4750.2,4750.1,3.196]
[1755147329496,16.70672725,4750.2,4750.1,3.196]
[1755147330600,17.61092725,4750.2,4750.1,3.196]
[1755147331417,17.61092725,4750.2,4750.1,0.19650798]
[1755147331711,17.61092725,4750.2,4750.1,3.39250798]
[1755147333816,17.61092725,4750.2,4750.1,0.19650798]
[1755147334018,20.61092725,4750.2,4750.1,3.39250798]
[1755147334421,20.61092725,4750.2,4750.1,0.19650798]
[1755147334596,20.61092725,4750.2,4750.1,3.39250798]
[1755147343325,17.61092725,4750.2,4750.1,3.39250798]
[1755147346261,17.61092725,4750.2,4750.1,3.39150798]
[1755147346534,17.61092725,4750.2,4750.1,0.19650798]
[1755147346739,20.17572725,4750.2,4750.1,0.19650798]
[1755147346985,20.61092725,4750.2,4750.1,3.39150798]
[1755147347230,3.0,4750.1,4749.3,5.043]
[1755147347418,12.84043458,4749.7,4749.3,5.043]
[1755147348399,12.84043458,4749.7,4749.6,3.196]
[1755147350656,27.34043458,4749.7,4749.6,3.196]
[1755147352648,14.6056,4749.7,4749.6,3.196]
[1755147353044,14.6056,4749.7,4749.6,3.62]
[1755147353354,14.6056,4749.7,4749.6,3.8811]
[1755147353355,0.1056,4749.7,4749.6,3.8811]
[1755147357928,0.1056,4749.7,4749.6,3.62]
[1755147358133,0.1056,4749.7,4749.6,3.8811]
[1755147359368,0.1056,4749.7,4749.6,4.07772644]
[1755147360738,0.1056,4750.0,4749.6,4.35221559]
[1755147360946,0.1056,4750.0,4749.7,2.76707066]
[1755147361263,0.1076,4750.7,4749.9,0.1056]
[1755147361475,0.1076,4750.7,4750.4,1.88701809]
[1755147361659,0.002,4750.7,4750.5,4.07672644]
[1755147361854,0.002,4750.7,4750.6,0.19662644]
[1755147362041,0.002,4750.7,4750.6,0.88172644]
[1755147364429,0.002,4750.7,4750.6,0.19662644]
[1755147364647,0.002,4750.7,4750.6,3.39062644]
[1755147364849,0.1076,4750.7,4750.6,3.39062644]
[1755147367841,0.1076,4750.7,4750.6,0.19662644]
[1755147368054,1.025,4750.7,4750.6,3.39062644]
[1755147369471,1.025,4750.7,4750.6,0.19662644]
[1755147369695,1.025,4750.7,4750.6,8.43462644]
[1755147370210,2.44874346,4750.7,4750.6,8.43383881]
[1755147370867,2.44874346,4750.7,4750.6,8.43283881]
[1755147371517,2.44874346,4750.7,4750.6,0.19583881]
[1755147371676,2.44874346,4750.7,4750.6,3.38883881]
[1755147375695,2.44874346,4750.7,4750.3,5.044]
[1755147375898,0.9174,4750.6,4750.3,5.044]
[1755147376397,0.1056,4750.4,4750.3,5.044]
[1755147376709,0.5454,4750.4,4750.3,5.044]
[1755147376877,0.5454,4750.4,4750.3,8.237]
[1755147378619,0.1056,4750.4,4750.3,8.237]
[1755147379107,0.1056,4750.4,4750.3,8.51148915]
[1755147379684,0.002,4750.7,4750.3,8.51148915]
[1755147379883,0.1056,4750.6,4750.3,8.51148915]
[1755147380301,0.1056,4750.6,4750.3,8.237]
[1755147381589,0.1056,4750.6,4750.4,3.0]
[1755147381791,0.1056,4750.6,4750.5,3.193]
[1755147382020,0.1056,4750.6,4750.5,6.193]
[1755147382189,0.002,4750.7,4750.6,3.0]
[1755147382389,0.002,4750.7,4750.6,0.38008915]
[1755147382589,0.002,4751.2,4750.6,0.38008915]
[1755147382812,0.002,4751.2,4750.8,3.0]
[1755147383034,0.002,4751.2,4750.7,3.46748915]
[1755147383035,0.002,4751.2,4751.0,3.0]
[1755147383219,0.002,4751.2,4751.1,3.193]
[1755147387600,0.002,4751.2,4751.1,3.38915628]
[1755147389326,0.4767,4752.1,4751.1,3.38915628]
[1755147389527,0.1076,4751.7,4751.2,0.19615628]
[1755147389725,0.1076,4751.7,4751.3,0.19615628]
[1755147389927,0.002,4751.7,4751.4,3.38815628]
[1755147390141,0.002,4751.7,4751.5,3.38815628]
[1755147390326,0.002,4751.7,4751.1,1.07904034]
[1755147390507,0.002,4751.7,4751.0,0.20985128]
[1755147390907,0.002,4751.7,4751.6,0.1056]
[1755147391507,0.002,4751.7,4751.6,3.2976]
[1755147393532,0.002,4751.7,4751.6,6.2976]
[1755147396347,0.002,4751.7,4751.6,6.57208915]
[1755147397012,0.002,4751.9,4751.7,3.0]
[1755147397218,0.002,4751.9,4751.6,6.57208915]
[1755147397219,0.002,4751.9,4751.6,3.57208915]
[1755147398220,0.002,4751.9,4751.6,3.2976]
[1755147398643,0.002,4751.9,4751.8,0.1056]
[1755147399353,0.002,4752.3,4751.8,0.1056]
[1755147399662,0.002,4752.3,4752.2,0.1056]
[1755147399869,0.002,4752.3,4752.2,3.2966]
[1755147400239,0.9425,4752.3,4752.2,3.2966]
[1755147400586,0.9425,4752.3,4752.2,3.191]
[1755147400737,0.9425,4752.3,4751.8,0.1056]
[1755147400937,0.4678,4752.3,4751.9,3.191]
[1755147401264,0.9405,4752.2,4752.0,3.191]
[1755147401564,0.9405,4752.1,4752.0,3.191]
[1755147402340,0.9405,4752.1,4752.0,8.42870124]
[1755147407975,0.9405,4752.1,4752.0,5.23770124]
[1755147408180,0.9405,4752.1,4752.0,8.42870124]
[1755147408360,1.0461,4752.1,4752.0,8.42870124]
[1755147408762,1.0461,4752.1,4752.0,8.42770124]
[1755147411971,1.0461,4752.1,4752.0,5.23770124]
[1755147412174,1.15311,4752.1,4752.0,8.42770124]
[1755147413610,1.15311,4752.1,4752.0,8.42844452]
[1755147414295,1.15311,4752.1,4751.2,1.87818292]
[1755147414502,0.9363,4752.0,4751.3,3.19]
[1755147414795,12.73483458,4751.8,4751.3,3.19]
[1755147414986,0.1056,4751.4,4751.3,3.19]
[1755147415159,1.0419,4751.4,4751.3,3.19]
[1755147418462,0.5589,4751.4,4751.3,3.19]
[1755147418666,0.1056,4751.4,4751.3,3.19]
[1755147418868,0.4533,4751.4,4751.3,3.19]
[1755147419161,1.0419,4751.4,4751.3,3.19]
[1755147422769,2.41957346,4751.4,4751.3,3.19]
[1755147423705,2.41957346,4751.4,4751.1,5.042]
[1755147423887,0.9363,4751.3,4751.2,3.191]
[1755147424674,0.9363,4751.3,4751.1,5.042]
[1755147424871,15.4363,4751.2,4751.1,5.042]
[1755147425104,17.53742725,4751.2,4751.1,8.233]
[1755147430613,17.53742725,4751.2,4751.1,5.042]
[1755147430816,17.53742725,4751.2,4751.1,8.233]
[1755147431415,17.53742725,4751.2,4750.5,0.001]
[1755147431416,3.0,4751.1,4750.5,0.001]
[1755147431584,15.84043458,4750.6,4750.5,0.001]
[1755147431784,15.84043458,4750.6,4750.5,3.192]
[1755147431785,18.45440804,4750.6,4750.5,3.192]
[1755147432185,32.95440804,4750.6,4750.5,3.192]
[1755147433432,3.0,4750.5,4750.3,0.001]
[1755147433722,0.9363,4750.4,4750.3,0.001]
[1755147434529,0.9363,4750.4,4750.3,3.192]
[1755147434850,6.03742725,4750.4,4750.3,3.192]
[1755147437635,2.20672725,4750.4,4750.3,3.192]
[1755147437920,0.1056,4750.4,4750.3,3.192]
[1755147443835,0.5574,4750.4,4750.3,3.192]
[1755147444202,1.0557,4750.4,4750.3,3.192]
[1755147444703,0.5574,4750.4,4750.3,3.192]
[1755147445436,1.0557,4750.4,4750.3,3.192]
[1755147445731,0.1056,4750.4,4750.3,3.192]
[1755147447721,0.1056,4750.4,4750.3,3.38825161]
[1755147448348,13.79053458,4750.4,4750.3,3.38825161]
[1755147451042,15.89166183,4750.4,4750.3,0.19725161]
[1755147451245,15.89166183,4750.4,4750.3,3.192]
[1755147451433,15.89166183,4750.4,4750.3,3.38839706]
[1755147454647,30.39166183,4750.4,4750.3,3.38839706]
[1755147457211,30.39166183,4750.4,4750.3,3.38862428]
[1755147458345,29.44156183,4750.4,4750.3,3.38862428]
[1755147458834,27.79223458,4750.4,4750.3,3.38862428]
[1755147459223,28.29053458,4750.4,4750.3,3.38862428]
[1755147462112,14.6056,4750.4,4750.3,3.38862428]
[1755147462755,0.1056,4750.4,4750.3,3.38862428]
[1755147462921,0.1056,4750.4,4750.3,3.58512428]
[1755147464024,0.002,4750.5,4750.3,3.85961343]
[1755147464224,0.002,4750.5,4750.4,0.39312428]
[1755147465649,0.002,4750.5,4750.4,0.19662428]
[1755147467262,0.002,4750.5,4750.4,3.38762428]
[1755147471377,0.4519,4750.5,4750.4,3.38762428]
[1755147472158,0.9425,4750.5,4750.4,3.3873934]
[1755147472461,0.9425,4750.5,4750.4,0.1963934]
[1755147472660,1.26223264,4750.5,4750.4,3.3873934]
[1755147473529,15.76223264,4750.5,4750.4,3.3873934]
[1755147473956,28.49706722,4750.5,4750.4,3.3873934]
[1755147475134,14.82173264,4750.5,4750.4,3.3873934]
[1755147475335,14.6076,4750.5,4750.4,3.3873934]
[1755147476047,0.1076,4750.5,4750.4,3.3873934]
[1755147477541,0.1076,4750.5,4750.4,3.87665008]
[1755147477747,0.1056,4750.7,4750.4,3.5838934]
[1755147478046,0.1056,4750.7,4750.5,0.3928934]
[1755147478243,0.1056,4750.7,4750.6,0.1963934]
[1755147478452,0.1056,4750.7,4750.6,0.3928934]
[1755147480936,0.1056,4750.7,4750.6,0.1963934]
[1755147481783,0.1056,4750.7,4750.6,3.3863934]
[1755147484896,0.09568182,4750.7,4750.6,3.3863934]
[1755147487057,0.1076,4751.0,4750.6,3.87565008]
[1755147487260,0.1076,4751.0,4750.7,0.48915008]
[1755147487461,0.1076,4751.0,4750.8,0.1963934]
[1755147487690,0.1076,4751.0,4750.9,0.1963934]